[Event "Titled Tuesday Blitz August 1 Late 2023"]
[White "Ganiev, Roman"]
[Black "Cheng, Xiao"]
[WhiteFideId "4131452"]
[BlackFideId "2022915"]
[WhiteElo "2583"]
[BlackElo "2437"]
[Result "1-0"]
[Round "3"]
[TimeControl "180+1"]
[Date "2023.08.01"]
[WhiteClock "0:00:18"]
[BlackClock "0:00:23"]
[Board "84"]

1. e4 {[%clk 0:02:57]}  c5 {[%clk 0:02:45]} 2. Nf3 {[%clk 0:02:55]}  e6 {[%clk 0:02:44]} 3. d4 {[%clk 0:02:53]}  cxd4 {[%clk 0:02:45]} 4. Nxd4 {[%clk 0:02:53]}  d6 {[%clk 0:02:41]} 5. Nc3 {[%clk 0:02:44]}  a6 {[%clk 0:02:38]} 6. Be3 {[%clk 0:02:32]}  b5 {[%clk 0:02:38]} 7. a3 {[%clk 0:02:28]}  Bb7 {[%clk 0:02:36]} 8. Qd2 {[%clk 0:02:28]}  Nf6 {[%clk 0:02:34]} 9. f3 {[%clk 0:02:27]}  Nbd7 {[%clk 0:02:34]} 10. O-O-O {[%clk 0:02:26]}  Nb6 {[%clk 0:02:30]} 11. e5 {[%clk 0:02:10]}  dxe5 {[%clk 0:02:24]} 12. Ndxb5 {[%clk 0:02:08]}  Nbd5 {[%clk 0:02:19]} 13. Nxd5 {[%clk 0:02:00]}  Nxd5 {[%clk 0:02:18]} 14. Nc3 {[%clk 0:01:45]}  Nxe3 {[%clk 0:02:09]} 15. Qxe3 {[%clk 0:01:43]}  Qc7 {[%clk 0:02:08]} 16. h4 {[%clk 0:01:22]}  Be7 {[%clk 0:02:06]} 17. h5 {[%clk 0:01:16]}  O-O {[%clk 0:02:05]} 18. h6 {[%clk 0:01:16]}  g6 {[%clk 0:02:02]} 19. Kb1 {[%clk 0:01:15]}  f5 {[%clk 0:02:00]} 20. Be2 {[%clk 0:01:09]}  Bf6 {[%clk 0:01:52]} 21. Qd3 {[%clk 0:00:52]}  Rac8 {[%clk 0:01:47]} 22. Qd6 {[%clk 0:00:48]}  Qf7 {[%clk 0:01:16]} 23. Qd7 {[%clk 0:00:47]}  Rc7 {[%clk 0:01:12]} 24. Qxf7+ {[%clk 0:00:47]}  Kxf7 {[%clk 0:01:13]} 25. Rd6 {[%clk 0:00:46]}  e4 {[%clk 0:01:12]} 26. Rhd1 {[%clk 0:00:39]}  exf3 {[%clk 0:01:04]} 27. gxf3 {[%clk 0:00:38]}  Bxc3 {[%clk 0:00:58]} 28. Rd7+ {[%clk 0:00:37]}  Rxd7 {[%clk 0:00:56]} 29. Rxd7+ {[%clk 0:00:37]}  Kf6 {[%clk 0:00:57]} 30. Rxb7 {[%clk 0:00:38]}  Be5 {[%clk 0:00:54]} 31. Rxh7 {[%clk 0:00:38]}  Kg5 {[%clk 0:00:45]} 32. Bxa6 {[%clk 0:00:33]}  Rh8 {[%clk 0:00:44]} 33. Rxh8 {[%clk 0:00:29]}  Bxh8 {[%clk 0:00:43]} 34. h7 {[%clk 0:00:30]}  Kh6 {[%clk 0:00:43]} 35. Bc8 {[%clk 0:00:29]}  e5 {[%clk 0:00:42]} 36. c4 {[%clk 0:00:25]}  Kxh7 {[%clk 0:00:41]} 37. b4 {[%clk 0:00:26]}  Kg7 {[%clk 0:00:42]} 38. Kc2 {[%clk 0:00:25]}  Kf6 {[%clk 0:00:42]} 39. Kd3 {[%clk 0:00:26]}  Ke7 {[%clk 0:00:43]} 40. c5 {[%clk 0:00:25]}  Kd8 {[%clk 0:00:43]} 41. Be6 {[%clk 0:00:25]}  Ke7 {[%clk 0:00:41]} 42. Bd5 {[%clk 0:00:25]}  Kd7 {[%clk 0:00:41]} 43. Bf7 {[%clk 0:00:23]}  g5 {[%clk 0:00:40]} 44. Bg6 {[%clk 0:00:22]}  Ke6 {[%clk 0:00:39]} 45. Kc4 {[%clk 0:00:21]}  Bg7 {[%clk 0:00:32]} 46. b5 {[%clk 0:00:19]}  Kf6 {[%clk 0:00:27]} 47. b6 {[%clk 0:00:18]}  Kxg6 {[%clk 0:00:26]} 48. b7 {[%clk 0:00:18]}  g4 {[%clk 0:00:27]} 49. fxg4 {[%clk 0:00:18]}  fxg4 {[%clk 0:00:27]} 50. b8=Q {[%clk 0:00:19]}  g3 {[%clk 0:00:28]} 51. Qb7 {[%clk 0:00:18]}  Bf6 {[%clk 0:00:27]} 52. Qe4+ {[%clk 0:00:18]}  Kg5 {[%clk 0:00:27]} 53. Kd5 {[%clk 0:00:18]}  g2 {[%clk 0:00:23]} 54. Qxg2+ {[%clk 0:00:18]} 1-0


[Site "https://www.chess.com"]

[Event "Titled Tuesday Blitz August 1 Late 2023"]
[White "WindWhistler11"]
[Black "Ibadov, Dashgyn"]
[BlackFideId "24107514"]
[WhiteElo "2435"]
[BlackElo "2580"]
[Result "0-1"]
[Round "3"]
[TimeControl "180+1"]
[Date "2023.08.01"]
[WhiteClock "0:00:08"]
[BlackClock "0:00:10"]
[Board "85"]

1. Nf3 {[%clk 0:03:00]}  d5 {[%clk 0:02:59]} 2. c4 {[%clk 0:03:00]}  d4 {[%clk 0:02:59]} 3. e3 {[%clk 0:02:58]}  c5 {[%clk 0:02:59]} 4. exd4 {[%clk 0:02:58]}  cxd4 {[%clk 0:03:00]} 5. Bd3 {[%clk 0:02:58]}  Nc6 {[%clk 0:03:00]} 6. O-O {[%clk 0:02:58]}  e5 {[%clk 0:02:59]} 7. Re1 {[%clk 0:02:59]}  Bd6 {[%clk 0:02:57]} 8. Bc2 {[%clk 0:02:59]}  Nge7 {[%clk 0:02:55]} 9. d3 {[%clk 0:02:59]}  O-O {[%clk 0:02:55]} 10. a3 {[%clk 0:03:00]}  a5 {[%clk 0:02:54]} 11. Nbd2 {[%clk 0:03:00]}  Bg4 {[%clk 0:02:53]} 12. Nf1 {[%clk 0:03:00]}  Ng6 {[%clk 0:02:36]} 13. Ng3 {[%clk 0:02:54]}  h6 {[%clk 0:02:32]} 14. h3 {[%clk 0:02:54]}  Be6 {[%clk 0:02:31]} 15. Bd2 {[%clk 0:02:43]}  Kh7 {[%clk 0:02:21]} 16. Rb1 {[%clk 0:02:41]}  Qe7 {[%clk 0:02:08]} 17. Ba4 {[%clk 0:02:17]}  f5 {[%clk 0:01:59]} 18. b4 {[%clk 0:01:59]}  axb4 {[%clk 0:01:58]} 19. Bxc6 {[%clk 0:01:59]}  bxc6 {[%clk 0:01:57]} 20. axb4 {[%clk 0:01:56]}  Ra2 {[%clk 0:00:54]} 21. Re2 {[%clk 0:01:33]}  e4 {[%clk 0:00:39]} 22. dxe4 {[%clk 0:01:23]}  Bxg3 {[%clk 0:00:38]} 23. exf5 {[%clk 0:01:16]}  Bxf2+ {[%clk 0:00:23]} 24. Rxf2 {[%clk 0:01:15]}  Rxf5 {[%clk 0:00:20]} 25. Bg5 {[%clk 0:01:06]}  Qa7 {[%clk 0:00:20]} 26. Rxa2 {[%clk 0:00:59]}  Qxa2 {[%clk 0:00:21]} 27. Ra1 {[%clk 0:00:36]}  Qxc4 {[%clk 0:00:19]} 28. Qxd4 {[%clk 0:00:17]}  hxg5 {[%clk 0:00:15]} 29. Qxc4 {[%clk 0:00:08]}  Bxc4 {[%clk 0:00:16]} 30. Nd4 {[%clk 0:00:07]}  Rf6 {[%clk 0:00:13]} 31. Rc1 {[%clk 0:00:08]}  Bd5 {[%clk 0:00:14]} 32. Rc5 {[%clk 0:00:08]}  Nf4 {[%clk 0:00:13]} 33. Kh2 {[%clk 0:00:06]}  Nxg2 {[%clk 0:00:10]} 34. b5 {[%clk 0:00:07]}  Rf2 {[%clk 0:00:08]} 35. Kg3 {[%clk 0:00:06]}  Rd2 {[%clk 0:00:07]} 36. bxc6 {[%clk 0:00:03]}  Rxd4 {[%clk 0:00:05]} 37. c7 {[%clk 0:00:04]}  Bb7 {[%clk 0:00:04]} 38. c8=Q {[%clk 0:00:03]}  Bxc8 {[%clk 0:00:04]} 39. Rxc8 {[%clk 0:00:04]}  Nf4 {[%clk 0:00:04]} 40. Rc5 {[%clk 0:00:04]}  Rd5 {[%clk 0:00:04]} 41. Rc4 {[%clk 0:00:04]}  Rf5 {[%clk 0:00:03]} 42. h4 {[%clk 0:00:04]}  gxh4+ {[%clk 0:00:04]} 43. Kg4 {[%clk 0:00:05]}  Rf6 {[%clk 0:00:03]} 44. Rxf4 {[%clk 0:00:02]}  Rxf4+ {[%clk 0:00:03]} 45. Kxf4 {[%clk 0:00:03]}  Kh6 {[%clk 0:00:03]} 46. Kg4 {[%clk 0:00:03]}  g5 {[%clk 0:00:04]} 47. Kh3 {[%clk 0:00:03]}  Kh5 {[%clk 0:00:05]} 48. Kg2 {[%clk 0:00:04]}  g4 {[%clk 0:00:06]} 49. Kh2 {[%clk 0:00:05]}  Kg5 {[%clk 0:00:07]} 50. Kg2 {[%clk 0:00:05]}  Kf4 {[%clk 0:00:07]} 51. Kf2 {[%clk 0:00:06]}  g3+ {[%clk 0:00:08]} 52. Kg2 {[%clk 0:00:07]}  Kg4 {[%clk 0:00:08]} 53. Kg1 {[%clk 0:00:07]}  Kf3 {[%clk 0:00:09]} 54. Kf1 {[%clk 0:00:08]}  g2+ {[%clk 0:00:09]} 55. Kg1 {[%clk 0:00:09]}  h3 {[%clk 0:00:09]} 56. Kh2 {[%clk 0:00:09]}  Kf2 {[%clk 0:00:09]} 57. Kxh3 {[%clk 0:00:08]}  g1=Q {[%clk 0:00:10]} 0-1


[Site "https://www.chess.com"]

[Event "Titled Tuesday Blitz August 1 Late 2023"]
[White "Kirillov, Dmitry"]
[Black "Rostomyan, Mikayel"]
[WhiteFideId "34180572"]
[BlackFideId "13313754"]
[WhiteElo "2434"]
[BlackElo "2577"]
[Result "1-0"]
[Round "3"]
[TimeControl "180+1"]
[Date "2023.08.01"]
[WhiteClock "0:00:05"]
[BlackClock "0:00:03"]
[Board "86"]

1. d4 {[%clk 0:02:53]}  Nf6 {[%clk 0:02:59]} 2. Nf3 {[%clk 0:02:53]}  e6 {[%clk 0:02:54]} 3. c4 {[%clk 0:02:52]}  Bb4+ {[%clk 0:02:53]} 4. Bd2 {[%clk 0:02:52]}  Bxd2+ {[%clk 0:02:36]} 5. Qxd2 {[%clk 0:02:53]}  O-O {[%clk 0:02:19]} 6. Nc3 {[%clk 0:02:52]}  d5 {[%clk 0:02:19]} 7. e3 {[%clk 0:02:51]}  b6 {[%clk 0:02:17]} 8. cxd5 {[%clk 0:02:51]}  exd5 {[%clk 0:02:17]} 9. Bd3 {[%clk 0:02:51]}  c5 {[%clk 0:02:15]} 10. h3 {[%clk 0:02:51]}  Ba6 {[%clk 0:02:15]} 11. O-O {[%clk 0:02:47]}  Bxd3 {[%clk 0:02:11]} 12. Qxd3 {[%clk 0:02:48]}  c4 {[%clk 0:02:12]} 13. Qc2 {[%clk 0:02:43]}  Re8 {[%clk 0:02:12]} 14. Ne5 {[%clk 0:02:43]}  Nbd7 {[%clk 0:02:08]} 15. f4 {[%clk 0:02:42]}  Rc8 {[%clk 0:02:02]} 16. a4 {[%clk 0:02:42]}  Qe7 {[%clk 0:02:01]} 17. Kh2 {[%clk 0:02:36]}  a6 {[%clk 0:01:56]} 18. g4 {[%clk 0:02:20]}  Qd6 {[%clk 0:01:52]} 19. g5 {[%clk 0:02:14]}  Nh5 {[%clk 0:01:50]} 20. Qe2 {[%clk 0:02:13]}  g6 {[%clk 0:01:45]} 21. Qf3 {[%clk 0:02:04]}  Nxe5 {[%clk 0:01:01]} 22. fxe5 {[%clk 0:02:02]}  Qe6 {[%clk 0:00:56]} 23. Qxd5 {[%clk 0:01:57]}  Qe7 {[%clk 0:00:52]} 24. h4 {[%clk 0:01:54]}  Ng7 {[%clk 0:00:46]} 25. Ne4 {[%clk 0:01:48]}  Red8 {[%clk 0:00:43]} 26. Nf6+ {[%clk 0:01:34]}  Kh8 {[%clk 0:00:43]} 27. Qe4 {[%clk 0:01:31]}  c3 {[%clk 0:00:32]} 28. bxc3 {[%clk 0:01:27]}  Rxc3 {[%clk 0:00:32]} 29. Rac1 {[%clk 0:01:27]}  Qa3 {[%clk 0:00:26]} 30. Rxc3 {[%clk 0:01:23]}  Qxc3 {[%clk 0:00:27]} 31. h5 {[%clk 0:01:17]}  Qd2+ {[%clk 0:00:25]} 32. Kg3 {[%clk 0:01:14]}  Nf5+ {[%clk 0:00:22]} 33. Kh3 {[%clk 0:00:45]}  Nxe3 {[%clk 0:00:13]} 34. Rf4 {[%clk 0:00:18]}  Rc8 {[%clk 0:00:06]} 35. hxg6 {[%clk 0:00:16]}  fxg6 {[%clk 0:00:06]} 36. Rh4 {[%clk 0:00:12]}  h5 {[%clk 0:00:05]} 37. Qb7 {[%clk 0:00:09]}  Rc7 {[%clk 0:00:02]} 38. Qb8+ {[%clk 0:00:09]}  Kg7 {[%clk 0:00:02]} 39. Qxc7+ {[%clk 0:00:09]}  Kf8 {[%clk 0:00:03]} 40. Nh7+ {[%clk 0:00:07]}  Ke8 {[%clk 0:00:03]} 41. Nf6+ {[%clk 0:00:06]}  Kf8 {[%clk 0:00:03]} 42. Qc8+ {[%clk 0:00:06]}  Ke7 {[%clk 0:00:03]} 43. Qb7+ {[%clk 0:00:06]}  Ke6 {[%clk 0:00:03]} 44. Qf3 {[%clk 0:00:02]}  Qe1 {[%clk 0:00:02]} 45. d5+ {[%clk 0:00:02]}  Ke7 {[%clk 0:00:01]} 46. d6+ {[%clk 0:00:02]}  Ke6 {[%clk 0:00:02]} 47. Rf4 {[%clk 0:00:01]}  Nd1 {[%clk 0:00:01]} 48. Qf1 {[%clk 0:00:01]}  Qc3+ {[%clk 0:00:01]} 49. Rf3 {[%clk 0:00:02]}  Ne3 {[%clk 0:00:02]} 50. Rxe3 {[%clk 0:00:02]}  Qxe5 {[%clk 0:00:02]} 51. Rxe5+ {[%clk 0:00:02]}  Kxe5 {[%clk 0:00:03]} 52. d7 {[%clk 0:00:03]}  Kd6 {[%clk 0:00:03]} 53. d8=Q+ {[%clk 0:00:04]}  Kc5 {[%clk 0:00:03]} 54. Qg8 {[%clk 0:00:05]} 1-0


[Site "https://www.chess.com"]

[Event "Titled Tuesday Blitz August 1 Late 2023"]
[White "vishwa_vijeta"]
[Black "Carrasco Miranda, Andres"]
[BlackFideId "3405990"]
[WhiteElo "2577"]
[BlackElo "2434"]
[Result "0-1"]
[Round "3"]
[TimeControl "180+1"]
[Date "2023.08.01"]
[WhiteClock "0:00:16"]
[BlackClock "0:00:15"]
[Board "87"]

1. e4 {[%clk 0:03:00]}  e5 {[%clk 0:02:59]} 2. Nf3 {[%clk 0:03:01]}  Nc6 {[%clk 0:03:00]} 3. d4 {[%clk 0:03:02]}  exd4 {[%clk 0:03:01]} 4. Bc4 {[%clk 0:03:01]}  Bc5 {[%clk 0:03:00]} 5. c3 {[%clk 0:03:01]}  Nf6 {[%clk 0:03:00]} 6. cxd4 {[%clk 0:03:01]}  Bb4+ {[%clk 0:02:59]} 7. Bd2 {[%clk 0:03:01]}  Bxd2+ {[%clk 0:02:57]} 8. Nbxd2 {[%clk 0:03:02]}  d5 {[%clk 0:02:57]} 9. exd5 {[%clk 0:03:02]}  Nxd5 {[%clk 0:02:58]} 10. O-O {[%clk 0:03:01]}  O-O {[%clk 0:02:58]} 11. Ne4 {[%clk 0:02:48]}  Bf5 {[%clk 0:02:51]} 12. Ng3 {[%clk 0:02:48]}  Be6 {[%clk 0:02:48]} 13. Re1 {[%clk 0:02:47]}  Nce7 {[%clk 0:02:35]} 14. Ne4 {[%clk 0:02:35]}  Nc3 {[%clk 0:02:14]} 15. bxc3 {[%clk 0:02:24]}  Bxc4 {[%clk 0:02:14]} 16. Ne5 {[%clk 0:02:24]}  Bd5 {[%clk 0:02:12]} 17. Qd2 {[%clk 0:02:12]}  Ng6 {[%clk 0:02:10]} 18. Ng3 {[%clk 0:02:06]}  Re8 {[%clk 0:01:57]} 19. f4 {[%clk 0:01:55]}  Qh4 {[%clk 0:01:41]} 20. f5 {[%clk 0:01:43]}  Nxe5 {[%clk 0:01:40]} 21. dxe5 {[%clk 0:01:41]}  Rad8 {[%clk 0:01:39]} 22. Qf2 {[%clk 0:01:39]}  b6 {[%clk 0:01:35]} 23. Rad1 {[%clk 0:01:35]}  c5 {[%clk 0:01:33]} 24. f6 {[%clk 0:01:20]}  g6 {[%clk 0:01:19]} 25. Qd2 {[%clk 0:01:13]}  h6 {[%clk 0:01:10]} 26. c4 {[%clk 0:01:00]}  Bxc4 {[%clk 0:01:05]} 27. Qxd8 {[%clk 0:00:56]}  Rxd8 {[%clk 0:01:06]} 28. Rxd8+ {[%clk 0:00:56]}  Kh7 {[%clk 0:01:06]} 29. e6 {[%clk 0:00:48]}  Bxe6 {[%clk 0:00:55]} 30. Rxe6 {[%clk 0:00:41]}  fxe6 {[%clk 0:00:55]} 31. Rd7+ {[%clk 0:00:41]}  Kg8 {[%clk 0:00:55]} 32. f7+ {[%clk 0:00:38]}  Kf8 {[%clk 0:00:55]} 33. Rxa7 {[%clk 0:00:38]}  Qd4+ {[%clk 0:00:53]} 34. Kf1 {[%clk 0:00:38]}  c4 {[%clk 0:00:47]} 35. Ne2 {[%clk 0:00:35]}  Qd1+ {[%clk 0:00:46]} 36. Kf2 {[%clk 0:00:35]}  b5 {[%clk 0:00:38]} 37. Rb7 {[%clk 0:00:25]}  Qd5 {[%clk 0:00:37]} 38. Nf4 {[%clk 0:00:20]}  Qf5 {[%clk 0:00:17]} 39. Ke3 {[%clk 0:00:18]}  g5 {[%clk 0:00:16]} 40. Ne2 {[%clk 0:00:10]}  Qe5+ {[%clk 0:00:16]} 41. Kf2 {[%clk 0:00:10]}  Qc5+ {[%clk 0:00:16]} 42. Ke1 {[%clk 0:00:10]}  c3 {[%clk 0:00:13]} 43. Kd1 {[%clk 0:00:10]}  b4 {[%clk 0:00:13]} 44. Kc2 {[%clk 0:00:09]}  Qf5+ {[%clk 0:00:13]} 45. Kb3 {[%clk 0:00:09]}  Qd5+ {[%clk 0:00:12]} 46. Kxb4 {[%clk 0:00:10]}  Qxb7+ {[%clk 0:00:13]} 47. Kxc3 {[%clk 0:00:11]}  Qc7+ {[%clk 0:00:12]} 48. Kd3 {[%clk 0:00:10]}  Qd6+ {[%clk 0:00:12]} 49. Nd4 {[%clk 0:00:11]}  e5 {[%clk 0:00:12]} 50. a4 {[%clk 0:00:11]}  Qxd4+ {[%clk 0:00:12]} 51. Ke2 {[%clk 0:00:11]}  Qxa4 {[%clk 0:00:12]} 52. Kf1 {[%clk 0:00:12]}  Kxf7 {[%clk 0:00:13]} 53. g3 {[%clk 0:00:13]}  Qc2 {[%clk 0:00:13]} 54. Kg1 {[%clk 0:00:13]}  e4 {[%clk 0:00:13]} 55. Kh1 {[%clk 0:00:14]}  e3 {[%clk 0:00:13]} 56. Kg1 {[%clk 0:00:15]}  Qf2+ {[%clk 0:00:14]} 57. Kh1 {[%clk 0:00:16]}  e2 {[%clk 0:00:14]} 58. h4 {[%clk 0:00:16]}  e1=Q# {[%clk 0:00:15]} 0-1


[Site "https://www.chess.com"]

[Event "Titled Tuesday Blitz August 1 Late 2023"]
[White "Adan Bermudez, Sergio"]
[Black "Ingunza Curro, Andres"]
[WhiteFideId "2292726"]
[BlackFideId "24526371"]
[WhiteElo "2569"]
[BlackElo "2431"]
[Result "1-0"]
[Round "3"]
[TimeControl "180+1"]
[Date "2023.08.01"]
[WhiteClock "0:00:58"]
[BlackClock "0:00:04"]
[Board "89"]

1. c4 {[%clk 0:03:00]}  e5 {[%clk 0:02:55]} 2. Nc3 {[%clk 0:03:01]}  f5 {[%clk 0:02:53]} 3. d4 {[%clk 0:02:57]}  exd4 {[%clk 0:02:54]} 4. Qxd4 {[%clk 0:02:56]}  Nc6 {[%clk 0:02:54]} 5. Qd1 {[%clk 0:02:56]}  Nf6 {[%clk 0:02:49]} 6. Nf3 {[%clk 0:02:54]}  Be7 {[%clk 0:02:48]} 7. g3 {[%clk 0:02:48]}  O-O {[%clk 0:02:48]} 8. Bg2 {[%clk 0:02:48]}  d6 {[%clk 0:02:48]} 9. O-O {[%clk 0:02:48]}  Ne5 {[%clk 0:02:42]} 10. Nd4 {[%clk 0:02:48]}  c6 {[%clk 0:02:36]} 11. b3 {[%clk 0:02:46]}  a5 {[%clk 0:02:20]} 12. e3 {[%clk 0:02:39]}  Qc7 {[%clk 0:02:11]} 13. Nce2 {[%clk 0:02:33]}  Bd7 {[%clk 0:01:34]} 14. Nf4 {[%clk 0:02:28]}  Qc8 {[%clk 0:01:33]} 15. Qc2 {[%clk 0:02:23]}  g5 {[%clk 0:01:17]} 16. Nd3 {[%clk 0:02:17]}  h6 {[%clk 0:01:04]} 17. a4 {[%clk 0:02:10]}  Nxd3 {[%clk 0:00:36]} 18. Qxd3 {[%clk 0:02:09]}  Ng4 {[%clk 0:00:36]} 19. f4 {[%clk 0:02:01]}  Qe8 {[%clk 0:00:20]} 20. h3 {[%clk 0:01:55]}  Nf6 {[%clk 0:00:17]} 21. Nxf5 {[%clk 0:01:54]}  Bxf5 {[%clk 0:00:10]} 22. Qxf5 {[%clk 0:01:55]}  gxf4 {[%clk 0:00:08]} 23. exf4 {[%clk 0:01:50]}  Qh5 {[%clk 0:00:07]} 24. Qe6+ {[%clk 0:01:38]}  Rf7 {[%clk 0:00:07]} 25. g4 {[%clk 0:01:36]}  Qg6 {[%clk 0:00:06]} 26. f5 {[%clk 0:01:35]}  Qg7 {[%clk 0:00:07]} 27. Bb2 {[%clk 0:01:35]}  Kh8 {[%clk 0:00:05]} 28. Rae1 {[%clk 0:01:34]}  Raf8 {[%clk 0:00:05]} 29. Qe2 {[%clk 0:01:28]}  Qg5 {[%clk 0:00:04]} 30. Bc1 {[%clk 0:01:26]}  Qg7 {[%clk 0:00:04]} 31. Qe3 {[%clk 0:01:25]}  Nh7 {[%clk 0:00:04]} 32. Qxh6 {[%clk 0:01:24]}  Bg5 {[%clk 0:00:04]} 33. Qxg7+ {[%clk 0:01:22]}  Kxg7 {[%clk 0:00:05]} 34. Bb2+ {[%clk 0:01:20]}  Bf6 {[%clk 0:00:05]} 35. Bxf6+ {[%clk 0:01:20]}  Kxf6 {[%clk 0:00:06]} 36. Re6+ {[%clk 0:01:20]}  Kg5 {[%clk 0:00:06]} 37. Rxd6 {[%clk 0:01:14]}  Rf6 {[%clk 0:00:06]} 38. Rxf6 {[%clk 0:01:10]}  Nxf6 {[%clk 0:00:07]} 39. Kh2 {[%clk 0:01:10]}  Rd8 {[%clk 0:00:07]} 40. Kg3 {[%clk 0:01:09]}  Rd3+ {[%clk 0:00:08]} 41. Kh2 {[%clk 0:01:03]}  Rd2 {[%clk 0:00:08]} 42. Rf3 {[%clk 0:00:59]}  Rb2 {[%clk 0:00:07]} 43. Re3 {[%clk 0:00:57]}  Rc2 {[%clk 0:00:05]} 44. Kg3 {[%clk 0:00:57]}  Rb2 {[%clk 0:00:04]} 45. h4+ {[%clk 0:00:57]}  Kh6 {[%clk 0:00:04]} 46. g5+ {[%clk 0:00:58]} 1-0


[Site "https://www.chess.com"]

[Event "Titled Tuesday Blitz August 1 Late 2023"]
[White "Todorovic, Bojan"]
[Black "Taboas Rodriguez, Daniel"]
[WhiteFideId "917087"]
[BlackFideId "2208466"]
[WhiteElo "2430"]
[BlackElo "2566"]
[Result "0-1"]
[Round "3"]
[TimeControl "180+1"]
[Date "2023.08.01"]
[WhiteClock "0:00:11"]
[BlackClock "0:01:21"]
[Board "90"]

1. c4 {[%clk 0:03:00]}  Nf6 {[%clk 0:02:59]} 2. Nc3 {[%clk 0:03:00]}  g6 {[%clk 0:02:58]} 3. d4 {[%clk 0:02:59]}  Bg7 {[%clk 0:02:58]} 4. e4 {[%clk 0:02:59]}  O-O {[%clk 0:02:58]} 5. h3 {[%clk 0:03:00]}  d6 {[%clk 0:02:58]} 6. Be3 {[%clk 0:03:00]}  Nc6 {[%clk 0:02:55]} 7. Nge2 {[%clk 0:02:59]}  e5 {[%clk 0:02:51]} 8. d5 {[%clk 0:02:59]}  Nd4 {[%clk 0:02:52]} 9. Nxd4 {[%clk 0:02:56]}  exd4 {[%clk 0:02:52]} 10. Bxd4 {[%clk 0:02:56]}  Nxe4 {[%clk 0:02:43]} 11. Bxg7 {[%clk 0:02:51]}  Re8 {[%clk 0:02:43]} 12. Be2 {[%clk 0:02:49]}  Kxg7 {[%clk 0:02:39]} 13. Qd4+ {[%clk 0:02:38]}  Qf6 {[%clk 0:02:37]} 14. Qxf6+ {[%clk 0:02:37]}  Kxf6 {[%clk 0:02:37]} 15. Nxe4+ {[%clk 0:02:20]}  Rxe4 {[%clk 0:02:37]} 16. Kd2 {[%clk 0:02:21]}  Rf4 {[%clk 0:02:25]} 17. f3 {[%clk 0:02:16]}  Bd7 {[%clk 0:02:15]} 18. Ke3 {[%clk 0:02:14]}  Rf5 {[%clk 0:02:14]} 19. Bd3 {[%clk 0:02:05]}  Re8+ {[%clk 0:02:11]} 20. Kf2 {[%clk 0:01:55]}  Rfe5 {[%clk 0:02:07]} 21. b4 {[%clk 0:01:50]}  g5 {[%clk 0:02:02]} 22. h4 {[%clk 0:01:49]}  g4 {[%clk 0:01:58]} 23. Rac1 {[%clk 0:01:16]}  h6 {[%clk 0:01:51]} 24. Rhf1 {[%clk 0:00:55]}  Re3 {[%clk 0:01:48]} 25. Be4 {[%clk 0:00:51]}  Ra3 {[%clk 0:01:46]} 26. Rc2 {[%clk 0:00:50]}  gxf3 {[%clk 0:01:40]} 27. gxf3 {[%clk 0:00:49]}  Rg8 {[%clk 0:01:36]} 28. c5 {[%clk 0:00:46]}  Bh3 {[%clk 0:01:32]} 29. Rg1 {[%clk 0:00:43]}  Rxg1 {[%clk 0:01:31]} 30. Kxg1 {[%clk 0:00:44]}  Ke5 {[%clk 0:01:31]} 31. cxd6 {[%clk 0:00:44]}  cxd6 {[%clk 0:01:32]} 32. Kh2 {[%clk 0:00:39]}  f5 {[%clk 0:01:25]} 33. Kxh3 {[%clk 0:00:20]}  fxe4 {[%clk 0:01:25]} 34. Rc7 {[%clk 0:00:17]}  Rxf3+ {[%clk 0:01:22]} 35. Kg2 {[%clk 0:00:17]}  Ra3 {[%clk 0:01:22]} 36. Rxb7 {[%clk 0:00:17]}  Rxa2+ {[%clk 0:01:21]} 37. Kf1 {[%clk 0:00:11]}  Kxd5 {[%clk 0:01:21]} 0-1


[Site "https://www.chess.com"]

[Event "Titled Tuesday Blitz August 1 Late 2023"]
[White "Sari, Yasin"]
[Black "Musovic, Armin"]
[WhiteFideId "6320902"]
[BlackFideId "939935"]
[WhiteElo "2426"]
[BlackElo "2563"]
[Result "0-1"]
[Round "3"]
[TimeControl "180+1"]
[Date "2023.08.01"]
[WhiteClock "0:00:01"]
[BlackClock "0:00:28"]
[Board "92"]

1. e4 {[%clk 0:02:53]}  c6 {[%clk 0:03:00]} 2. d3 {[%clk 0:02:52]}  d5 {[%clk 0:03:01]} 3. Nd2 {[%clk 0:02:53]}  g5 {[%clk 0:03:00]} 4. d4 {[%clk 0:02:44]}  g4 {[%clk 0:02:56]} 5. c3 {[%clk 0:02:40]}  h5 {[%clk 0:02:52]} 6. Bd3 {[%clk 0:02:38]}  Nd7 {[%clk 0:02:49]} 7. e5 {[%clk 0:02:37]}  e6 {[%clk 0:02:48]} 8. Ne2 {[%clk 0:02:28]}  a6 {[%clk 0:02:48]} 9. h3 {[%clk 0:02:15]}  Nh6 {[%clk 0:02:38]} 10. hxg4 {[%clk 0:01:50]}  Rg8 {[%clk 0:02:38]} 11. Rxh5 {[%clk 0:01:43]}  Nxg4 {[%clk 0:02:36]} 12. Nf3 {[%clk 0:01:39]}  c5 {[%clk 0:02:34]} 13. Kf1 {[%clk 0:01:15]}  cxd4 {[%clk 0:02:24]} 14. cxd4 {[%clk 0:01:16]}  Qb6 {[%clk 0:02:15]} 15. Qb3 {[%clk 0:01:12]}  Qxb3 {[%clk 0:02:00]} 16. axb3 {[%clk 0:01:13]}  Nb6 {[%clk 0:01:43]} 17. Bd2 {[%clk 0:01:12]}  Bd7 {[%clk 0:01:39]} 18. Ba5 {[%clk 0:01:08]}  Nc8 {[%clk 0:01:40]} 19. Rc1 {[%clk 0:01:04]}  Ne7 {[%clk 0:01:39]} 20. Rh7 {[%clk 0:00:37]}  Nc6 {[%clk 0:01:37]} 21. Bd2 {[%clk 0:00:38]}  Rg7 {[%clk 0:01:31]} 22. Rh8 {[%clk 0:00:35]}  O-O-O {[%clk 0:01:31]} 23. b4 {[%clk 0:00:29]}  Kb8 {[%clk 0:01:29]} 24. b5 {[%clk 0:00:30]}  axb5 {[%clk 0:01:29]} 25. Bxb5 {[%clk 0:00:30]}  Be7 {[%clk 0:01:28]} 26. Rxd8+ {[%clk 0:00:29]}  Bxd8 {[%clk 0:01:29]} 27. g3 {[%clk 0:00:23]}  Rh7 {[%clk 0:01:15]} 28. Kg2 {[%clk 0:00:22]}  Ncxe5 {[%clk 0:01:07]} 29. Nxe5 {[%clk 0:00:20]}  Nxe5 {[%clk 0:01:07]} 30. Bxd7 {[%clk 0:00:16]}  Nxd7 {[%clk 0:01:07]} 31. Bf4+ {[%clk 0:00:17]}  Ka7 {[%clk 0:01:07]} 32. Nc3 {[%clk 0:00:15]}  Nf6 {[%clk 0:00:51]} 33. Nb5+ {[%clk 0:00:14]}  Kb6 {[%clk 0:00:52]} 34. Nd6 {[%clk 0:00:14]}  Ne4 {[%clk 0:00:49]} 35. Nc8+ {[%clk 0:00:13]}  Kb5 {[%clk 0:00:48]} 36. f3 {[%clk 0:00:10]}  Ng5 {[%clk 0:00:43]} 37. Nd6+ {[%clk 0:00:07]}  Kb6 {[%clk 0:00:40]} 38. Nc8+ {[%clk 0:00:06]}  Ka6 {[%clk 0:00:38]} 39. b4 {[%clk 0:00:03]}  f6 {[%clk 0:00:36]} 40. Nd6 {[%clk 0:00:03]}  Rc7 {[%clk 0:00:28]} 41. Ra1+ {[%clk 0:00:01]}  Kb6 {[%clk 0:00:29]} 42. Rb1 {[%clk 0:00:01]}  Rc2+ {[%clk 0:00:29]} 43. Kf1 {[%clk 0:00:02]}  Nxf3 {[%clk 0:00:29]} 44. Nc8+ {[%clk 0:00:02]}  Rxc8 {[%clk 0:00:28]} 45. Ra1 {[%clk 0:00:01]}  Rc2 {[%clk 0:00:28]} 0-1


[Site "https://www.chess.com"]